fUSD/lending_fUSD_20250511
["ID","MTS","AMOUNT","RATE_DAILY","PERIOD"]
[360673812,1746922257743,-400.0,0.00019899,2]
[360673813,1746922257753,-400.0,0.00019899,2]
[360673814,1746922257763,-400.0,0.00019899,2]
[360673815,1746922257773,-400.0,0.00019899,2]
[360673816,1746922257782,-400.0,0.00019899,2]
[360673817,1746922257792,-423.04,0.00019899,2]
[360673818,1746922257802,-400.0,0.00019899,2]
[360673819,1746922257811,-400.0,0.00019899,2]
[360673820,1746922257820,-424.85,0.00019899,2]
[360673821,1746922257830,-400.0,0.00019899,2]
[360673822,1746922257839,-680.11,0.00019899,2]
[360673823,1746922257851,-400.0,0.00019899,2]
[360673824,1746922257860,-400.0,0.00019899,2]
[360673825,1746922257870,-400.0,0.00019899,2]
[360673826,1746922257880,-400.0,0.00019899,2]
[360673827,1746922257890,-400.0,0.00019899,2]
[360673828,1746922257899,-400.0,0.00019899,2]
[360673829,1746922257909,-400.0,0.00019899,2]
[360673830,1746922257919,-400.0,0.00019899,2]
[360673831,1746922257929,-400.0,0.00019899,2]
[360673832,1746922257938,-400.0,0.00019899,2]
[360673833,1746922257947,-400.0,0.00019899,2]
[360673834,1746922257957,-400.0,0.00019899,2]
[360673835,1746922257967,-400.0,0.00019899,2]
[360673836,1746922257976,-400.0,0.00019899,2]
[360673837,1746922257986,-400.0,0.00019899,2]
[360673838,1746922257995,-400.0,0.00019899,2]
[360673839,1746922258005,-400.0,0.00019899,2]
[360673840,1746922258014,-400.0,0.00019899,2]
[360673841,1746922258023,-230.37510653,0.00019899,2]
[360673842,1746922258033,-722.52,0.00019899,2]
[360673843,1746922258043,-400.0,0.00019899,2]
[360673844,1746922258052,-428.6,0.00019899,2]
[360673845,1746922258062,-400.0,0.00019899,2]
[360673846,1746922258071,-400.0,0.00019899,2]
[360673847,1746922258081,-400.0,0.00019899,2]
[360673848,1746922258092,-400.0,0.00019899,2]
[360673849,1746922258102,-400.0,0.00019899,2]
[360673850,1746922258112,-400.0,0.00019899,2]
[360673851,1746922258122,-400.0,0.00019899,2]
[360673852,1746922258131,-494.9,0.00019899,2]
[360673853,1746922258141,-400.0,0.00019899,2]
[360673854,1746922258151,-400.0,0.00019899,2]
[360673855,1746922258161,-400.0,0.00019899,2]
[360673856,1746922258171,-290.19630198,0.00019899,2]
[360673857,1746922258182,-400.0,0.00019899,2]
[360673858,1746922258192,-400.0,0.00019899,2]
[360673859,1746922258202,-1196.84,0.00019899,2]
[360673860,1746922258212,-400.0,0.00019899,2]
[360673861,1746922258223,-259.51612584,0.00019899,2]
[360673862,1746922258235,-400.0,0.00019899,2]
[360673863,1746922258245,-400.0,0.00019899,2]
[360673864,1746922258254,-588.98,0.00019899,2]
[360673865,1746922258263,-2984.98727235,0.00019899,2]
[360673866,1746922258273,-400.0,0.00019899,2]
[360673867,1746922258283,-400.0,0.00019899,2]
[360673868,1746922258292,-400.0,0.00019899,2]
[360673869,1746922258301,-711.13,0.00019899,2]
[360673870,1746922258310,-400.0,0.00019899,2]
[360673871,1746922258320,-400.0,0.00019899,2]
[360673872,1746922258333,-400.0,0.00019899,2]
[360673873,1746922258344,-400.0,0.00019899,2]
[360673874,1746922258354,-400.0,0.00019899,2]
[360673875,1746922258364,-400.0,0.00019899,2]
[360673876,1746922258374,-400.0,0.00019899,2]
[360673877,1746922258384,-400.0,0.00019899,2]
[360673878,1746922258394,-400.0,0.00019899,2]
[360673879,1746922258405,-748.55,0.00019899,2]
[360673880,1746922258415,-27410.73,0.00019899,2]
[360673881,1746922258426,-400.0,0.00019899,2]
[360673882,1746922258435,-400.0,0.00019899,2]
[360673883,1746922258445,-266.91,0.00019899,2]
[360673884,1746922258455,-660.51,0.00019899,2]
[360673885,1746922258465,-400.0,0.00019899,2]
[360673886,1746922258475,-568.0,0.00019899,2]
[360673887,1746922258485,-400.0,0.00019899,2]
[360673888,1746922258494,-500.0,0.00019899,2]
[360673889,1746922258504,-400.0,0.00019899,2]
[360673890,1746922258514,-400.0,0.00019899,2]
[360673891,1746922258523,-400.0,0.00019899,2]
[360673892,1746922258533,-820.74,0.00019899,2]
[360673893,1746922258542,-815.94,0.00019899,2]
[360673894,1746922258552,-686.29,0.00019899,2]
[360673895,1746922258561,-400.0,0.00019899,2]
[360673896,1746922258571,-1754.64,0.00019899,2]
[360673897,1746922258580,-400.0,0.00019899,2]
[360673898,1746922258590,-400.0,0.00019899,2]
[360673899,1746922258603,-400.0,0.00019899,2]
[360673900,1746922258612,-400.0,0.00019899,2]
[360673901,1746922258623,-400.0,0.00019899,2]
[360673902,1746922258632,-400.0,0.00019899,2]
[360673903,1746922258642,-400.0,0.00019899,2]
[360673904,1746922258652,-570.9,0.00019899,2]
[360673905,1746922258663,-400.0,0.00019899,2]
[360673906,1746922258672,-400.0,0.00019899,2]
[360673907,1746922258682,-863.57,0.00019899,2]
[360673908,1746922258692,-624.8,0.00019899,2]
[360673909,1746922258703,-400.0,0.00019899,2]
[360673910,1746922258713,-610.92,0.00019899,2]
[360673911,1746922258722,-2975.71,0.00019899,2]
[360673912,1746922258732,-400.0,0.00019899,2]
[360673913,1746922258742,-467.21288994,0.00019899,2]
[360673914,1746922258752,-400.0,0.00019899,2]
[360673915,1746922258762,-400.0,0.00019899,2]
[360673916,1746922258772,-3132.65,0.00019899,2]
[360673917,1746922258782,-400.0,0.00019899,2]
[360673918,1746922258792,-226.28,0.00019899,2]
[360673919,1746922258801,-1696.63,0.00019899,2]
[360673920,1746922258811,-400.0,0.00019899,2]
[360673921,1746922258821,-400.0,0.00019899,2]
[360673922,1746922258831,-400.0,0.00019899,2]
[360673923,1746922258841,-400.0,0.00019899,2]
[360673924,1746922258852,-400.0,0.00019899,2]
[360673925,1746922258862,-289.58919938,0.00019899,2]
[360673926,1746922258872,-795.5,0.00019899,2]
[360673927,1746922258882,-400.0,0.00019899,2]
[360673928,1746922258891,-470.43,0.00019899,2]
[360673929,1746922258901,-1342.02,0.00019899,2]
[360673930,1746922258911,-402.12,0.00019899,2]
[360673931,1746922258920,-400.0,0.00019899,2]
[360673932,1746922258930,-400.0,0.00019899,2]
[360673933,1746922259099,-400.0,0.00019899,2]
[360673934,1746922259112,-400.0,0.00019899,2]
[360673935,1746922259123,-400.0,0.00019899,2]
[360673936,1746922259132,-400.0,0.00019899,2]
[360673937,1746922259142,-400.0,0.00019899,2]
[360673938,1746922259151,-400.0,0.00019899,2]
[360673939,1746922259160,-400.0,0.00019899,2]
[360673940,1746922259170,-400.0,0.00019899,2]
[360673941,1746922259179,-400.0,0.00019899,2]
[360673942,1746922259188,-400.0,0.00019899,2]
[360673943,1746922259198,-1033.7295523,0.00019899,2]
[360673944,1746922259207,-400.0,0.00019899,2]
[360673945,1746922259217,-400.0,0.00019899,2]
[360673946,1746922259227,-400.0,0.00019899,2]
[360673947,1746922259236,-400.0,0.00019899,2]
[360673948,1746922259246,-400.0,0.00019899,2]
[360673949,1746922259256,-400.0,0.00019899,2]
[360673950,1746922259266,-400.0,0.00019899,2]
[360673951,1746922259275,-544.12,0.00019899,2]
[360673952,1746922259285,-400.0,0.00019899,2]
[360673953,1746922259295,-400.0,0.00019899,2]
[360673954,1746922259304,-500.0,0.00019899,2]
[360673955,1746922259314,-400.0,0.00019899,2]
[360673956,1746922259326,-400.0,0.00019899,2]
[360673957,1746922259344,-400.0,0.00019899,2]
[360673958,1746922259354,-400.0,0.00019899,2]
[360673959,1746922259363,-400.0,0.00019899,2]
[360673960,1746922259373,-400.0,0.00019899,2]
[360673961,1746922259383,-2265.29,0.00019899,2]
[360673962,1746922259392,-400.0,0.00019899,2]
[360673963,1746922259406,-400.0,0.00019899,2]
[360673964,1746922259416,-400.0,0.00019899,2]
[360673965,1746922259426,-400.0,0.00019899,2]
[360673966,1746922259436,-400.0,0.00019899,2]
[360673967,1746922259446,-400.0,0.00019899,2]
[360673968,1746922259455,-400.0,0.00019899,2]
[360673969,1746922259464,-508.5,0.00019899,2]
[360673970,1746922259474,-400.0,0.00019899,2]
[360673971,1746922259484,-400.0,0.00019899,2]
[360673972,1746922259494,-400.0,0.00019899,2]
[360673973,1746922259503,-5789.32112788,0.00019899,2]
[360673974,1746922259513,-397.64407225,0.00019899,2]
[360673975,1746922259523,-311.98518916,0.000199,2]
[360673976,1746922259534,-12500.0,0.000199,2]
[360673977,1746922259543,-158.98189596,0.000199,2]
[360673978,1746922259554,-202.30486572,0.000199,2]
[360673979,1746922259564,-236.0,0.000199,2]
[360673980,1746922259574,-1033.7295523,0.000199,2]
[360673981,1746922259584,-374.0,0.000199,2]
[360673982,1746922259597,-765.0,0.000199,2]
[360673983,1746922259607,-420.0,0.00019909,2]
[360673984,1746922259617,-500.0,0.00019917,2]
[360673985,1746922259626,-151.64493616,0.00019918,2]
[360673986,1746922259636,-150.0,0.00019918,2]
[360673987,1746922259645,-150.0,0.00019918,2]
[360673988,1746922259655,-150.5013834,0.00019918,2]
[360673989,1746922259665,-150.0,0.00019921,2]
[360673990,1746922259675,-150.0,0.00019939,2]
[360673991,1746922259685,-500.0,0.00019945,2]
[360673992,1746922259695,-150.0,0.00019945,2]
[360673993,1746922259704,-202.51412539,0.00019945,2]
[360673994,1746922259714,-454.57548089,0.00019946,2]
[360673995,1746922259723,-400.0,0.00019946,2]
[360673996,1746922259732,-400.0,0.00019946,2]
[360673997,1746922259742,-576.35,0.00019946,2]
[360673998,1746922259752,-400.0,0.00019946,2]
[360673999,1746922259762,-400.0,0.00019946,2]
[360674000,1746922259772,-400.0,0.00019946,2]
[360674001,1746922259782,-549.19,0.00019946,2]
[360674002,1746922259792,-400.0,0.00019946,2]
[360674003,1746922259802,-400.0,0.00019946,2]
[360674004,1746922259811,-400.0,0.00019946,2]
[360674005,1746922259821,-400.0,0.00019946,2]
[360674006,1746922259831,-400.0,0.00019946,2]
[360674007,1746922259841,-417.25,0.00019946,2]
[360674008,1746922259852,-400.0,0.00019946,2]
[360674009,1746922259862,-400.0,0.00019946,2]
[360674010,1746922259872,-400.0,0.00019946,2]
[360674011,1746922259881,-400.0,0.00019946,2]
[360674012,1746922259891,-590.88,0.00019946,2]
[360674013,1746922259901,-300.0,0.00019946,2]
[360674014,1746922259911,-400.0,0.00019946,2]
[360674015,1746922259920,-400.0,0.00019946,2]
[360674016,1746922259930,-400.0,0.00019946,2]
[360674017,1746922259940,-400.0,0.00019946,2]
[360674018,1746922259949,-400.0,0.00019946,2]
[360674019,1746922259960,-300.0,0.00019946,2]
[360674020,1746922259970,-150.0,0.00019949,2]
[360674021,1746922259981,-150.0,0.00019956,2]
[360674022,1746922259991,-150.0,0.00019966,2]
[360674023,1746922260001,-400.0,0.00019969,2]
[360674024,1746922260011,-400.0,0.00019969,2]
[360674025,1746922260021,-400.0,0.00019969,2]
[360674026,1746922260031,-400.0,0.00019969,2]
[360674027,1746922260041,-405.27,0.00019969,2]
[360674028,1746922260052,-400.0,0.00019969,2]
[360674029,1746922260062,-400.0,0.00019969,2]
[360674030,1746922260072,-657.91,0.00019969,2]
[360674031,1746922260082,-171.78,0.00019969,2]
[360674032,1746922260094,-400.0,0.00019969,2]
[360674033,1746922260103,-400.0,0.00019969,2]
[360674034,1746922260113,-400.0,0.00019969,2]
[360674035,1746922260123,-400.0,0.00019969,2]
[360674036,1746922260132,-400.0,0.00019969,2]
[360674037,1746922260142,-400.0,0.00019969,2]
[360674038,1746922260153,-400.0,0.00019969,2]
[360674039,1746922260163,-600.9,0.00019969,2]
[360674040,1746922260172,-400.0,0.00019969,2]
[360674041,1746922260182,-400.0,0.00019969,2]
[360674042,1746922260192,-518.2,0.00019969,2]
[360674043,1746922260202,-400.0,0.00019969,2]
[360674044,1746922260212,-769.19,0.00019969,2]
[360674045,1746922260222,-1000.0,0.0001997,2]
[360674046,1746922260232,-1000.0,0.0001997,2]
[360674047,1746922260242,-1000.0,0.0001997,2]
[360674048,1746922260252,-1000.0,0.0001997,2]
[360674049,1746922260262,-500.0,0.0001997,2]
[360674050,1746922260272,-500.0,0.0001997,2]
[360674051,1746922260282,-500.0,0.0001997,2]
[360674052,1746922260292,-500.0,0.0001997,2]
[360674053,1746922260302,-1000.0,0.0001997,2]
[360674054,1746922260312,-500.0,0.0001997,2]
[360674055,1746922260321,-150.0,0.00019972,2]
[360674056,1746922260335,-500.0,0.00019972,2]
[360674057,1746922260348,-1018.0,0.00019973,2]
[360674058,1746922260359,-500.0,0.00019973,2]
[360674059,1746922260370,-490.46388571,0.00019973,2]
[360674060,1746922260379,-500.0,0.00019973,2]
[360674061,1746922260390,-500.0,0.00019973,2]
[360674062,1746922260399,-500.0,0.00019973,2]
[360674063,1746922260410,-500.0,0.00019973,2]
[360674064,1746922260421,-636.0258398,0.00019973,2]
[360674065,1746922260431,-500.0,0.00019973,2]
[360674066,1746922260442,-501.88362141,0.00019973,2]
[360674067,1746922260452,-160.57086387,0.00019973,2]
[360674068,1746922260463,-550.74197227,0.00019973,2]
[360674069,1746922260473,-530.01864699,0.00019973,2]
[360674070,1746922260482,-500.0,0.00019973,2]
[360674071,1746922260492,-500.0,0.00019973,2]
[360674072,1746922260501,-500.0,0.00019973,2]
[360674073,1746922260511,-500.0,0.00019973,2]
[360674074,1746922260521,-160.6846534,0.00019973,2]
[360674075,1746922260531,-500.0,0.00019973,2]
[360674076,1746922260540,-300.0,0.00019973,2]
[360674077,1746922260550,-500.0,0.00019973,2]
[360674078,1746922260560,-500.0,0.00019973,2]
[360674079,1746922260569,-508.34666095,0.00019973,2]
[360674080,1746922260579,-500.0,0.00019973,2]
[360674081,1746922260589,-150.0,0.00019973,2]
[360674082,1746922260602,-416.54,0.00019973,2]
[360674083,1746922260612,-400.0,0.00019973,2]
[360674084,1746922260622,-400.0,0.00019973,2]
[360674085,1746922260632,-1034.88,0.00019973,2]
[360674086,1746922260641,-400.0,0.00019973,2]
[360674087,1746922260651,-400.0,0.00019973,2]
[360674088,1746922260660,-400.0,0.00019973,2]
[360674089,1746922260670,-400.0,0.00019973,2]
[360674090,1746922260679,-400.0,0.00019973,2]
[360674091,1746922260689,-400.0,0.00019973,2]
[360674092,1746922260699,-400.0,0.00019973,2]
[360674093,1746922260709,-450.0,0.00019973,2]
[360674094,1746922260719,-400.0,0.00019973,2]
[360674095,1746922260728,-400.0,0.00019973,2]
[360674096,1746922260738,-400.0,0.00019973,2]
[360674097,1746922260748,-400.0,0.00019973,2]
[360674098,1746922260758,-400.0,0.00019973,2]
[360674099,1746922260768,-337.62156396,0.00019973,2]
[360674100,1746922260777,-400.0,0.00019973,2]
[360674101,1746922260788,-400.0,0.00019973,2]
[360674102,1746922260798,-400.0,0.00019973,2]
[360674103,1746922260808,-400.0,0.00019973,2]
[360674104,1746922260818,-400.0,0.00019973,2]
[360674105,1746922260828,-400.0,0.00019973,2]
[360674106,1746922260837,-400.0,0.00019973,2]
[360674107,1746922260850,-400.0,0.00019973,2]
[360674108,1746922260860,-400.0,0.00019973,2]
[360674109,1746922260869,-518.45,0.00019973,2]
[360674110,1746922260879,-400.0,0.00019973,2]
[360674111,1746922260889,-400.0,0.00019973,2]
[360674112,1746922260900,-400.0,0.00019973,2]
[360674113,1746922260909,-400.0,0.00019973,2]
[360674114,1746922260920,-229.23801752,0.00019973,2]
[360674115,1746922260930,-400.0,0.00019973,2]
[360674116,1746922260940,-431.85,0.00019973,2]
[360674117,1746922260950,-400.0,0.00019973,2]
[360674118,1746922260959,-400.0,0.00019973,2]
[360674119,1746922260970,-400.0,0.00019973,2]
[360674120,1746922260980,-400.0,0.00019973,2]
[360674121,1746922260990,-400.0,0.00019973,2]
[360674122,1746922261000,-400.0,0.00019973,2]
[360674123,1746922261010,-400.0,0.00019973,2]
[360674124,1746922261020,-400.0,0.00019973,2]
[360674125,1746922261029,-400.0,0.00019973,2]
[360674126,1746922261039,-400.0,0.00019973,2]
[360674127,1746922261048,-424.85,0.00019973,2]
[360674128,1746922261058,-400.0,0.00019973,2]
[360674129,1746922261068,-400.0,0.00019973,2]
[360674130,1746922261078,-400.0,0.00019973,2]
[360674131,1746922261088,-400.0,0.00019973,2]
[360674132,1746922261101,-400.0,0.00019973,2]
[360674133,1746922261111,-400.0,0.00019973,2]
[360674134,1746922261121,-476.14077894,0.00019973,2]
[360674135,1746922261130,-400.0,0.00019973,2]
[360674136,1746922261139,-400.0,0.00019973,2]
[360674137,1746922261149,-400.0,0.00019973,2]
[360674138,1746922261159,-400.0,0.00019973,2]
[360674139,1746922261169,-400.0,0.00019973,2]
[360674140,1746922261179,-400.0,0.00019973,2]
[360674141,1746922261189,-722.52,0.00019973,2]
[360674142,1746922261200,-428.6,0.00019973,2]
[360674143,1746922261209,-400.0,0.00019973,2]
[360674144,1746922261219,-400.0,0.00019973,2]
[360674145,1746922261228,-400.0,0.00019973,2]
[360674146,1746922261238,-400.0,0.00019973,2]
[360674147,1746922261247,-400.0,0.00019973,2]
[360674148,1746922261257,-400.0,0.00019973,2]
[360674149,1746922261266,-400.0,0.00019973,2]
[360674150,1746922261276,-494.9,0.00019973,2]
[360674151,1746922261285,-400.0,0.00019973,2]
[360674152,1746922261295,-400.0,0.00019973,2]
[360674153,1746922261306,-400.0,0.00019973,2]
[360674154,1746922261315,-400.0,0.00019973,2]
[360674155,1746922261327,-1196.84,0.00019973,2]
[360674156,1746922261337,-400.0,0.00019973,2]
[360674157,1746922261350,-400.0,0.00019973,2]
[360674158,1746922261359,-400.0,0.00019973,2]
[360674159,1746922261370,-588.98,0.00019973,2]
[360674160,1746922261379,-400.0,0.00019973,2]
[360674161,1746922261388,-400.0,0.00019973,2]
[360674162,1746922261397,-400.0,0.00019973,2]
[360674163,1746922261406,-711.13,0.00019973,2]
[360674164,1746922261415,-400.0,0.00019973,2]
[360674165,1746922261425,-400.0,0.00019973,2]
[360674166,1746922261434,-400.0,0.00019973,2]
[360674167,1746922261443,-400.0,0.00019973,2]
[360674168,1746922261453,-400.0,0.00019973,2]
[360674169,1746922261464,-400.0,0.00019973,2]
[360674170,1746922261474,-414.38354991,0.00019973,2]
[360674171,1746922261484,-400.0,0.00019973,2]
[360674172,1746922261493,-400.0,0.00019973,2]
[360674173,1746922261503,-450.28,0.00019973,2]
[360674174,1746922261512,-748.55,0.00019973,2]
[360674175,1746922261521,-27410.73,0.00019973,2]
[360674176,1746922261532,-400.0,0.00019973,2]
[360674177,1746922261542,-400.0,0.00019973,2]
[360674178,1746922261551,-400.0,0.00019973,2]
[360674179,1746922261607,-400.0,0.00019973,2]
[360674180,1746922261617,-660.51,0.00019973,2]
[360674181,1746922261628,-942.26,0.00019973,2]
[360674182,1746922261638,-613.12,0.00019973,2]
[360674183,1746922261647,-400.0,0.00019973,2]
[360674184,1746922261657,-400.0,0.00019973,2]
[360674185,1746922261666,-400.0,0.00019973,2]
[360674186,1746922261676,-568.0,0.00019973,2]
[360674187,1746922261685,-400.0,0.00019973,2]
[360674188,1746922261694,-500.0,0.00019973,2]
[360674189,1746922261704,-400.0,0.00019973,2]
[360674190,1746922261713,-400.0,0.00019973,2]
[360674191,1746922261722,-400.0,0.00019973,2]
[360674192,1746922261731,-400.0,0.00019973,2]
[360674193,1746922261741,-400.0,0.00019973,2]
[360674194,1746922261750,-820.74,0.00019973,2]
[360674195,1746922261759,-815.94,0.00019973,2]
[360674196,1746922261768,-686.29,0.00019973,2]
[360674197,1746922261777,-1754.64,0.00019973,2]
[360674198,1746922261786,-400.0,0.00019973,2]
[360674199,1746922261794,-190.73,0.00019973,2]
[360674200,1746922261803,-400.0,0.00019973,2]
[360674201,1746922261813,-400.0,0.00019973,2]
[360674202,1746922261822,-186.77742884,0.00019973,2]
[360674203,1746922261832,-400.0,0.00019973,2]
[360674204,1746922261841,-400.0,0.00019973,2]
[360674205,1746922261855,-570.9,0.00019973,2]
[360674206,1746922261864,-400.0,0.00019973,2]
[360674207,1746922261874,-356.42074864,0.00019973,2]
[360674208,1746922261884,-400.0,0.00019973,2]
[360674209,1746922261893,-400.0,0.00019973,2]
[360674210,1746922261903,-863.57,0.00019973,2]
[360674211,1746922261912,-624.8,0.00019973,2]
[360674212,1746922261922,-196.37,0.00019973,2]
[360674213,1746922261932,-610.92,0.00019973,2]
[360674214,1746922261942,-400.0,0.00019973,2]
[360674215,1746922261951,-2975.71,0.00019973,2]
[360674216,1746922261961,-861.14,0.00019973,2]
[360674217,1746922261971,-400.0,0.00019973,2]
[360674218,1746922261980,-400.0,0.00019973,2]
[360674219,1746922261989,-3132.65,0.00019973,2]
[360674220,1746922261998,-400.0,0.00019973,2]
[360674221,1746922262007,-400.0,0.00019973,2]
[360674222,1746922262016,-1696.63,0.00019973,2]
[360674223,1746922262026,-400.0,0.00019973,2]
[360674224,1746922262036,-400.0,0.00019973,2]
[360674225,1746922262046,-400.0,0.00019973,2]
[360674226,1746922262056,-308.22878288,0.00019973,2]
[360674227,1746922262065,-400.0,0.00019973,2]
[360674228,1746922262075,-795.5,0.00019973,2]
[360674229,1746922262084,-400.0,0.00019973,2]
[360674230,1746922262097,-470.43,0.00019973,2]
[360674231,1746922262106,-1342.02,0.00019973,2]
[360674232,1746922262116,-400.0,0.00019973,2]
[360674233,1746922262126,-400.0,0.00019973,2]
[360674234,1746922262135,-402.12,0.00019973,2]
[360674235,1746922262145,-400.0,0.00019973,2]
[360674236,1746922262155,-400.0,0.00019973,2]
[360674237,1746922262164,-400.0,0.00019973,2]
[360674238,1746922262174,-1549.33,0.00019973,2]
[360674239,1746922262183,-400.0,0.00019973,2]
[360674240,1746922262192,-400.0,0.00019973,2]
[360674241,1746922262202,-177.88,0.00019973,2]
[360674242,1746922262211,-400.0,0.00019973,2]
[360674243,1746922262221,-400.0,0.00019973,2]
[360674244,1746922262230,-400.0,0.00019973,2]
[360674245,1746922262239,-400.0,0.00019973,2]
[360674246,1746922262249,-400.0,0.00019973,2]
[360674247,1746922262258,-400.0,0.00019973,2]
[360674248,1746922262267,-400.0,0.00019973,2]
[360674249,1746922262276,-400.0,0.00019973,2]
[360674250,1746922262285,-400.0,0.00019973,2]
[360674251,1746922262294,-400.0,0.00019973,2]
[360674252,1746922262304,-400.0,0.00019973,2]
[360674253,1746922262313,-400.0,0.00019973,2]
[360674254,1746922262324,-544.12,0.00019973,2]
[360674255,1746922262337,-400.0,0.00019973,2]
[360674256,1746922262351,-400.0,0.00019973,2]
[360674257,1746922262360,-400.0,0.00019973,2]
[360674258,1746922262371,-200.19,0.00019973,2]
[360674259,1746922262380,-500.0,0.00019973,2]
[360674260,1746922262389,-400.0,0.00019973,2]
[360674261,1746922262401,-400.0,0.00019973,2]
[360674262,1746922262411,-400.0,0.00019973,2]
[360674263,1746922262421,-851.88,0.00019973,2]
[360674264,1746922262431,-400.0,0.00019973,2]
[360674265,1746922262441,-400.0,0.00019973,2]
[360674266,1746922262450,-400.0,0.00019973,2]
[360674267,1746922262459,-2265.29,0.00019973,2]
[360674268,1746922262469,-400.0,0.00019973,2]
[360674269,1746922262478,-400.0,0.00019973,2]
[360674270,1746922262487,-400.0,0.00019973,2]
[360674271,1746922262497,-400.0,0.00019973,2]
[360674272,1746922262506,-400.0,0.00019973,2]
[360674273,1746922262516,-908.5,0.00019973,2]
[360674274,1746922262526,-400.0,0.00019973,2]
[360674275,1746922262537,-400.0,0.00019973,2]
[360674276,1746922262546,-400.0,0.00019973,2]
[360674277,1746922262556,-400.0,0.00019973,2]
[360674278,1746922262565,-400.0,0.00019973,2]
[360674279,1746922262576,-400.0,0.00019973,2]
[360674280,1746922262586,-400.0,0.00019974,2]
[360674281,1746922262597,-400.0,0.00019974,2]
[360674282,1746922262607,-576.35,0.00019974,2]
[360674283,1746922262616,-400.0,0.00019974,2]
[360674284,1746922262626,-549.19,0.00019974,2]
[360674285,1746922262636,-400.0,0.00019974,2]
[360674286,1746922262646,-400.0,0.00019974,2]
[360674287,1746922262656,-400.0,0.00019974,2]
[360674288,1746922262666,-400.0,0.00019974,2]
[360674289,1746922262676,-400.0,0.00019974,2]
[360674290,1746922262686,-400.0,0.00019974,2]
[360674291,1746922262695,-400.0,0.00019974,2]
[360674292,1746922262705,-590.88,0.00019974,2]
[360674293,1746922262714,-300.0,0.00019974,2]
[360674294,1746922262724,-400.0,0.00019974,2]
[360674295,1746922262733,-400.0,0.00019974,2]
[360674296,1746922262743,-400.0,0.00019974,2]
[360674297,1746922262752,-500.0,0.00019974,2]
[360674298,1746922262762,-400.0,0.00019974,2]
[360674299,1746922262772,-400.0,0.00019974,2]
[360674300,1746922262781,-400.0,0.00019974,2]
[360674301,1746922262791,-400.0,0.00019974,2]
[360674302,1746922262801,-400.0,0.00019974,2]
[360674303,1746922262811,-400.0,0.00019974,2]
[360674304,1746922262821,-400.0,0.00019974,2]
[360674305,1746922262830,-400.0,0.00019974,2]
[360674306,1746922262839,-400.0,0.00019974,2]
[360674307,1746922262853,-511.72,0.00019974,2]
[360674308,1746922262864,-468.61,0.00019974,2]
[360674309,1746922262873,-491.04,0.00019974,2]
[360674310,1746922262883,-891.09,0.00019974,2]
[360674311,1746922262892,-450.0,0.00019974,2]